[Event "Championnat d'Europe Rapide"]
[Date "2024.12.07"]
[White "Zilakauskis, Steponas"]
[Black "Pantsulaia, Levan"]
[WhiteElo "1941"]
[BlackElo "2522"]
[Round "1.34"]
[Result "0-1"]
[TimeControl "900+10"]

1. d4 {[%clk 00:15:19]} c5 {[%emt 00:00:04] [%clk 00:15:18]} 2. d5 {[%emt
00:00:02] [%clk 00:15:25]} g6 {[%emt 00:00:01] [%clk 00:15:27]} 3. e4 {[%emt
00:00:06] [%clk 00:15:29]} Bg7 {[%emt 00:00:01] [%clk 00:15:35]} 4. Nf3 {[%emt
00:00:02] [%clk 00:15:37]} d6 {[%emt 00:00:02] [%clk 00:15:44]} 5. Nc3 {[%emt
00:00:02] [%clk 00:15:45]} Nf6 {[%emt 00:00:03] [%clk 00:15:51]} 6. Bb5+ {[%emt
00:00:03] [%clk 00:15:51]} Bd7 {[%emt 00:00:01] [%clk 00:16:00]} 7. a4 {[%emt
00:00:02] [%clk 00:16:00]} Bxb5 {[%emt 00:00:02] [%clk 00:16:08]} 8. axb5 {[%emt
00:00:01] [%clk 00:16:09]} O-O {[%emt 00:00:02] [%clk 00:16:16]} 9. O-O {[%emt
00:00:13] [%clk 00:16:05]} Nbd7 {[%emt 00:00:02] [%clk 00:16:24]} 10. h3 {[%emt
00:00:01] [%clk 00:16:14]} Ne8 {[%emt 00:00:02] [%clk 00:16:33]} 11. Re1 {[%emt
00:01:26] [%clk 00:14:57]} Nc7 {[%emt 00:00:02] [%clk 00:16:41]} 12. Bg5 {[%emt
00:01:05] [%clk 00:14:02]} Nb6 {[%emt 00:00:12] [%clk 00:16:39]} 13. Qd3 {[%emt
00:00:35] [%clk 00:13:37]} Qd7 {[%emt 00:00:07] [%clk 00:16:42]} 14. Nd2 {[%emt
00:00:39] [%clk 00:13:08]} Rfe8 {[%emt 00:00:09] [%clk 00:16:43]} 15. Ra5 {[%emt
00:00:32] [%clk 00:12:46]} a6 {[%emt 00:01:23] [%clk 00:15:29]} 16. bxa6 {[%emt
00:01:02] [%clk 00:11:54]} Rxa6 {[%emt 00:00:21] [%clk 00:15:19]} 17. Rea1
{[%emt 00:02:42] [%clk 00:09:22]} f5 {[%emt 00:01:01] [%clk 00:14:27]} 18. f3
{[%emt 00:01:47] [%clk 00:07:45]} fxe4 {[%emt 00:01:45] [%clk 00:12:52]} 19.
fxe4 {[%emt 00:00:02] [%clk 00:07:53]} Rxa5 {[%emt 00:00:14] [%clk 00:12:49]}
20. Rxa5 {[%emt 00:00:02] [%clk 00:08:00]} Ra8 {[%clk 00:12:58]} 21. Rxa8+
{[%emt 00:01:25] [%clk 00:06:45]} Nbxa8 {[%emt 00:00:03] [%clk 00:13:05]} 22.
Nc4 {[%emt 00:00:22] [%clk 00:06:33]} Na6 {[%emt 00:01:00] [%clk 00:12:15]} 23.
Nd1 {[%emt 00:00:48] [%clk 00:05:55]} N8c7 {[%emt 00:01:57] [%clk 00:10:27]} 24.
c3 {[%emt 00:00:39] [%clk 00:05:27]} h6 {[%emt 00:00:48] [%clk 00:09:49]} 25.
Bh4 {[%emt 00:00:49] [%clk 00:04:48]} b5 {[%emt 00:01:17] [%clk 00:08:42]} 26.
Na5 {[%emt 00:00:06] [%clk 00:04:52]} c4 {[%emt 00:00:01] [%clk 00:08:51]} 27.
Qf3 {[%emt 00:00:48] [%clk 00:04:13]} Nc5 {[%emt 00:02:08] [%clk 00:06:54]} 28.
Nc6 {[%emt 00:00:20] [%clk 00:04:03]} g5 {[%emt 00:00:01] [%clk 00:07:02]} 29.
Bf2 {[%emt 00:00:08] [%clk 00:04:04]} Nd3 {[%emt 00:01:06] [%clk 00:06:07]} 30.
Bd4 {[%emt 00:01:08] [%clk 00:03:06]} e6 {[%emt 00:00:32] [%clk 00:05:46]} 31.
Bxg7 {[%emt 00:00:49] [%clk 00:02:27]} Kxg7 {[%emt 00:00:01] [%clk 00:05:54]}
32. Nd4 {[%emt 00:00:17] [%clk 00:02:20]} Qf7 {[%emt 00:01:26] [%clk 00:04:39]}
33. Qxf7+ {[%emt 00:00:13] [%clk 00:02:16]} Kxf7 {[%emt 00:00:01] [%clk
00:04:48]} 34. dxe6+ {[%emt 00:00:01] [%clk 00:02:25]} Kf6 {[%clk 00:04:57]} 35.
Kf1 {[%emt 00:00:31] [%clk 00:02:05]} h5 {[%emt 00:00:07] [%clk 00:05:00]} 36.
g3 {[%emt 00:00:07] [%clk 00:02:08]} Nc5 {[%emt 00:00:33] [%clk 00:04:38]} 37.
Nf2 {[%emt 00:00:18] [%clk 00:02:00]} N5xe6 {[%emt 00:00:13] [%clk 00:04:35]}
38. Nxe6 {[%emt 00:00:12] [%clk 00:01:57]} Nxe6 {[%emt 00:00:07] [%clk
00:04:38]} 39. Ke2 {[%emt 00:00:25] [%clk 00:01:43]} Ke5 {[%emt 00:00:05] [%clk
00:04:44]} 40. Ke3 {[%emt 00:00:06] [%clk 00:01:47]} Nc5 {[%emt 00:00:05] [%clk
00:04:48]} 41. Kf3 {[%emt 00:00:46] [%clk 00:01:10]} Nd3 {[%emt 00:01:23] [%clk
00:03:36]} 42. Nxd3+ {[%emt 00:00:45] [%clk 00:00:35]} cxd3 {[%emt 00:00:01]
[%clk 00:03:45]} 43. Ke3 {[%emt 00:00:01] [%clk 00:00:44]} d2 {[%clk 00:03:54]}
44. Kxd2 {[%clk 00:00:53]} Kxe4 {[%clk 00:04:03]} 45. Ke2 {[%emt 00:00:01] [%clk
00:01:02]} h4 {[%emt 00:00:31] [%clk 00:03:42]} 46. gxh4 {[%clk 00:01:11]} gxh4
{[%emt 00:00:01] [%clk 00:03:52]} 47. b3 {[%emt 00:01:05] [%clk 00:00:16]} Kf4
{[%emt 00:01:13] [%clk 00:02:49]} 48. Kf2 {[%emt 00:00:07] [%clk 00:00:20]} d5
{[%emt 00:00:01] [%clk 00:02:58]} 49. b4 {[%emt 00:00:12] [%clk 00:00:18]} Ke4
{[%emt 00:00:05] [%clk 00:03:03]} 50. Ke2 {[%emt 00:00:02] [%clk 00:00:26]} d4
{[%emt 00:00:01] [%clk 00:03:12]} 51. cxd4 {[%emt 00:00:21] [%clk 00:00:15]}
Kxd4 {[%clk 00:03:20]} 52. Kd2 {[%clk 00:00:25]} Kc4 {[%emt 00:00:01] [%clk
00:03:29]} 53. Kc2 {[%clk 00:00:34]} Kxb4 {[%emt 00:00:01] [%clk 00:03:38]} 54.
Kb2 {[%clk 00:00:43]} Kc4 {[%emt 00:00:01] [%clk 00:03:47]} 55. Kc2 {[%emt
00:00:03] [%clk 00:00:50]} Kd4 {[%emt 00:00:02] [%clk 00:03:54]} 56. Kb3 {[%clk
00:00:59]} Ke4 {[%emt 00:00:01] [%clk 00:04:03]} 57. Kb4 {[%clk 00:01:08]} Kf3
{[%clk 00:04:12]} 58. Kxb5 {[%emt 00:00:01] [%clk 00:01:17]} Kg3 {[%clk
00:04:21]} 0-1

[Site "Europe Echecs"]

[Event "Championnat d'Europe Rapide"]
[Date "2024.12.07"]
[White "Gavrilescu, David"]
[Black "Marques, Ricardo Taborda Trigo"]
[WhiteElo "2549"]
[BlackElo "2001"]
[Round "1.35"]
[Result "0-1"]
[TimeControl "900+10"]

1. e4 {[%emt 00:00:04] [%clk 00:15:15]} c6 {[%emt 00:00:04] [%clk 00:15:16]} 2.
Nf3 {[%emt 00:00:26] [%clk 00:14:59]} d5 {[%emt 00:00:04] [%clk 00:15:22]} 3.
Nc3 {[%emt 00:00:02] [%clk 00:15:07]} Bg4 {[%emt 00:00:09] [%clk 00:15:23]} 4.
h3 {[%emt 00:00:03] [%clk 00:15:15]} Bxf3 {[%emt 00:00:03] [%clk 00:15:30]} 5.
Qxf3 {[%emt 00:00:02] [%clk 00:15:23]} e6 {[%emt 00:00:02] [%clk 00:15:39]} 6.
g3 {[%emt 00:00:03] [%clk 00:15:30]} g6 {[%emt 00:01:00] [%clk 00:14:48]} 7. d4
{[%emt 00:01:04] [%clk 00:14:37]} Bg7 {[%emt 00:00:08] [%clk 00:14:49]} 8. Be3
{[%emt 00:00:02] [%clk 00:14:44]} Nf6 {[%emt 00:00:49] [%clk 00:14:10]} 9. e5
{[%emt 00:00:14] [%clk 00:14:40]} Nfd7 {[%emt 00:00:02] [%clk 00:14:18]} 10. Ne2
{[%emt 00:00:17] [%clk 00:14:34]} c5 {[%emt 00:00:22] [%clk 00:14:06]} 11. c3
{[%emt 00:00:03] [%clk 00:14:40]} Nc6 {[%emt 00:00:03] [%clk 00:14:13]} 12. Bd2
{[%emt 00:02:41] [%clk 00:12:09]} Qb6 {[%emt 00:00:47] [%clk 00:13:36]} 13. Qd3
{[%emt 00:00:02] [%clk 00:12:18]} O-O {[%emt 00:00:40] [%clk 00:13:06]} 14. Bg2
{[%emt 00:00:15] [%clk 00:12:14]} Qxb2 {[%emt 00:01:32] [%clk 00:11:43]} 15. Rb1
{[%emt 00:00:24] [%clk 00:11:59]} Qxa2 {[%emt 00:00:25] [%clk 00:11:28]} 16.
Rxb7 {[%emt 00:00:04] [%clk 00:12:06]} Nb6 {[%emt 00:00:28] [%clk 00:11:10]} 17.
O-O {[%emt 00:01:12] [%clk 00:11:04]} Na5 {[%emt 00:01:45] [%clk 00:09:35]} 18.
Rc7 {[%emt 00:00:15] [%clk 00:10:59]} Rfc8 {[%emt 00:00:39] [%clk 00:09:05]} 19.
Rxc8+ {[%emt 00:01:53] [%clk 00:09:16]} Rxc8 {[%emt 00:00:02] [%clk 00:09:13]}
20. Bg5 {[%emt 00:00:02] [%clk 00:09:24]} Nbc4 {[%emt 00:00:31] [%clk 00:08:53]}
21. h4 {[%emt 00:00:37] [%clk 00:08:57]} h6 {[%emt 00:00:52] [%clk 00:08:11]}
22. Bf6 {[%emt 00:00:39] [%clk 00:08:28]} Nd2 {[%emt 00:00:43] [%clk 00:07:37]}
23. Nc1 {[%emt 00:02:57] [%clk 00:05:42]} c4 {[%emt 00:00:30] [%clk 00:07:18]}
24. Qe2 {[%emt 00:00:31] [%clk 00:05:20]} Qc2 {[%emt 00:00:21] [%clk 00:07:06]}
25. Rd1 {[%emt 00:00:04] [%clk 00:05:26]} Nab3 {[%emt 00:01:26] [%clk 00:05:50]}
26. Nxb3 {[%emt 00:00:18] [%clk 00:05:18]} cxb3 {[%emt 00:00:04] [%clk
00:05:56]} 27. Rxd2 {[%emt 00:00:53] [%clk 00:04:35]} Qxc3 {[%emt 00:00:03]
[%clk 00:06:03]} 28. h5 {[%emt 00:00:12] [%clk 00:04:33]} g5 {[%emt 00:00:23]
[%clk 00:05:51]} 29. Bf1 {[%emt 00:01:15] [%clk 00:03:27]} a5 {[%emt 00:00:07]
[%clk 00:05:54]} 30. Qa6 {[%emt 00:00:23] [%clk 00:03:13]} a4 {[%emt 00:00:30]
[%clk 00:05:34]} 31. Rd1 {[%emt 00:01:14] [%clk 00:02:10]} Qc6 {[%emt 00:01:11]
[%clk 00:04:33]} 32. Qa7 {[%emt 00:02:20]} Ra8 {[%clk 00:04:26]} 33. Bb5 {[%emt
00:00:16] [%clk 00:00:12]} Rxa7 {[%emt 00:00:31] [%clk 00:04:04]} 34. Bxc6
{[%emt 00:00:01] [%clk 00:00:20]} a3 {[%emt 00:00:20] [%clk 00:03:54]} 35. Bb5
{[%emt 00:00:19] [%clk 00:00:12]} a2 {[%emt 00:00:09] [%clk 00:03:54]} 0-1

[Site "Europe Echecs"]

[Event "Championnat d'Europe Rapide"]
[Date "2024.12.07"]
[White "Nicholas, Koichi B"]
[Black "Kadric, Denis"]
[WhiteElo "2069"]
[BlackElo "2544"]
[Round "1.36"]
[Result "0-1"]
[TimeControl "900+10"]

1. e4 {[%emt 00:04:53] [%clk 00:10:26]} d6 {[%emt 00:00:21] [%clk 00:15:00]} 2.
d4 {[%emt 00:00:03] [%clk 00:10:33]} g6 {[%emt 00:00:01] [%clk 00:15:10]} 3. Nc3
{[%emt 00:00:04] [%clk 00:10:38]} Bg7 {[%emt 00:00:02] [%clk 00:15:19]} 4. Be3
{[%emt 00:00:04] [%clk 00:10:44]} a6 {[%emt 00:00:03] [%clk 00:15:27]} 5. Qd2
{[%emt 00:00:12] [%clk 00:10:41]} b5 {[%emt 00:00:02] [%clk 00:15:35]} 6. a3
{[%emt 00:00:06] [%clk 00:10:45]} Bb7 {[%emt 00:00:09] [%clk 00:15:37]} 7. h4
{[%emt 00:00:22] [%clk 00:10:32]} Nf6 {[%emt 00:00:46] [%clk 00:15:02]} 8. f3
{[%emt 00:00:05] [%clk 00:10:36]} h5 {[%emt 00:00:20] [%clk 00:14:53]} 9. Nh3
{[%emt 00:00:06] [%clk 00:10:38]} Nbd7 {[%emt 00:00:09] [%clk 00:14:55]} 10. Ng5
{[%emt 00:00:13] [%clk 00:10:35]} e6 {[%emt 00:00:02] [%clk 00:15:03]} 11. O-O-O
{[%emt 00:00:11] [%clk 00:10:33]} Qe7 {[%emt 00:00:02] [%clk 00:15:12]} 12. Kb1
{[%emt 00:00:23] [%clk 00:10:20]} Rb8 {[%emt 00:01:34] [%clk 00:13:48]} 13. Rg1
{[%emt 00:02:03] [%clk 00:08:27]} Nb6 {[%emt 00:00:31] [%clk 00:13:28]} 14. Bd3
{[%emt 00:00:51] [%clk 00:07:45]} d5 {[%emt 00:02:00] [%clk 00:11:39]} 15. e5
{[%emt 00:00:37] [%clk 00:07:17]} Nfd7 {[%emt 00:00:01] [%clk 00:11:48]} 16. g4
{[%emt 00:00:11] [%clk 00:07:15]} Nc4 {[%emt 00:00:34] [%clk 00:11:25]} 17. Bxc4
{[%emt 00:00:18] [%clk 00:07:07]} bxc4 {[%emt 00:00:01] [%clk 00:11:34]} 18. Nh3
{[%emt 00:01:50] [%clk 00:05:27]} c5 {[%emt 00:01:28] [%clk 00:10:17]} 19. Nf4
{[%emt 00:00:48] [%clk 00:04:48]} cxd4 {[%emt 00:00:48] [%clk 00:09:40]} 20.
Bxd4 {[%emt 00:00:06] [%clk 00:04:52]} hxg4 {[%emt 00:00:10] [%clk 00:09:41]}
21. h5 {[%emt 00:00:25] [%clk 00:04:36]} g5 {[%emt 00:02:31] [%clk 00:07:20]}
22. Rxg4 {[%emt 00:01:03] [%clk 00:03:43]} Nxe5 {[%emt 00:00:12] [%clk
00:07:18]} 23. Qe2 {[%emt 00:00:52] [%clk 00:03:00]} Nxg4 {[%emt 00:02:15] [%clk
00:05:14]} 24. Bxg7 {[%emt 00:00:09] [%clk 00:03:01]} Rg8 {[%emt 00:01:39] [%clk
00:03:45]} 25. fxg4 {[%emt 00:00:04] [%clk 00:03:07]} Rxg7 {[%emt 00:00:14]
[%clk 00:03:42]} 26. Qe5 {[%emt 00:00:06] [%clk 00:03:10]} Rd8 {[%emt 00:00:40]
[%clk 00:03:13]} 27. Qxg7 {[%emt 00:00:03] [%clk 00:03:17]} gxf4 {[%emt
00:00:19] [%clk 00:03:04]} 28. h6 {[%emt 00:00:10] [%clk 00:03:17]} f6 {[%emt
00:01:44] [%clk 00:01:31]} 29. Qg8+ {[%emt 00:00:40] [%clk 00:02:46]} Kd7 {[%emt
00:00:01] [%clk 00:01:40]} 30. h7 {[%clk 00:02:54]} Qf8 {[%emt 00:00:01] [%clk
00:01:50]} 31. Qg6 {[%emt 00:00:30] [%clk 00:02:34]} Ke7 {[%emt 00:00:40] [%clk
00:01:20]} 32. Rh1 {[%emt 00:00:30] [%clk 00:02:13]} Qh8 {[%emt 00:00:03] [%clk
00:01:27]} 33. Na4 {[%emt 00:00:24] [%clk 00:01:59]} Rf8 {[%emt 00:00:47] [%clk
00:00:50]} 34. Nc5 {[%emt 00:00:14] [%clk 00:01:54]} Bc8 {[%emt 00:00:01] [%clk
00:00:59]} 35. g5 {[%emt 00:00:23] [%clk 00:01:42]} fxg5 {[%emt 00:00:37] [%clk
00:00:32]} 36. Qxg5+ {[%emt 00:00:02] [%clk 00:01:50]} Kd6 {[%clk 00:00:41]} 37.
Na4 {[%emt 00:00:22] [%clk 00:01:39]} Bd7 {[%emt 00:00:30] [%clk 00:00:22]} 38.
Nc3 {[%emt 00:00:01] [%clk 00:01:46]} f3 {[%emt 00:00:01] [%clk 00:00:31]} 39.
Qg3+ {[%emt 00:00:02] [%clk 00:01:54]} Ke7 {[%emt 00:00:01] [%clk 00:00:41]} 40.
Nd1 {[%emt 00:00:23] [%clk 00:01:40]} e5 {[%emt 00:00:26] [%clk 00:00:25]} 41.
Qg5+ {[%emt 00:00:30] [%clk 00:01:19]} Kd6 {[%emt 00:00:15] [%clk 00:00:21]} 42.
Rh6+ {[%emt 00:00:27] [%clk 00:01:01]} Be6 {[%emt 00:00:01] [%clk 00:00:30]} 43.
Qg4 {[%emt 00:00:01] [%clk 00:01:10]} Rf6 {[%emt 00:00:10] [%clk 00:00:29]} 44.
Rxf6 {[%emt 00:00:20] [%clk 00:00:59]} Qxf6 {[%emt 00:00:01] [%clk 00:00:39]}
45. Qh5 {[%emt 00:00:03] [%clk 00:01:05]} Qh8 {[%emt 00:00:02] [%clk 00:00:48]}
46. Nf2 {[%emt 00:00:21] [%clk 00:00:53]} e4 {[%emt 00:00:04] [%clk 00:00:55]}
47. Qh2+ {[%emt 00:00:06] [%clk 00:00:57]} Kd7 {[%emt 00:00:05] [%clk 00:01:00]}
48. Nd1 {[%emt 00:00:28] [%clk 00:00:38]} Bf5 {[%emt 00:00:03] [%clk 00:01:08]}
49. Qd2 {[%emt 00:00:20] [%clk 00:00:27]} d4 {[%emt 00:00:32] [%clk 00:00:47]}
50. Qa5 {[%emt 00:00:16] [%clk 00:00:21]} Bxh7 {[%emt 00:00:40] [%clk 00:00:18]}
51. Qd5+ {[%emt 00:00:09] [%clk 00:00:21]} Ke7 {[%emt 00:00:04] [%clk 00:00:24]}
52. Qb7+ {[%emt 00:00:07] [%clk 00:00:24]} Kf6 {[%emt 00:00:08] [%clk 00:00:27]}
53. Qxa6+ {[%emt 00:00:03] [%clk 00:00:31]} Kg5 {[%emt 00:00:07] [%clk
00:00:30]} 54. Qxc4 {[%emt 00:00:08] [%clk 00:00:32]} Bf5 {[%emt 00:00:23] [%clk
00:00:17]} 55. Qf1 {[%emt 00:00:18] [%clk 00:00:24]} Qh2 {[%emt 00:00:06] [%clk
00:00:22]} 56. Nf2 {[%emt 00:00:22] [%clk 00:00:12]} e3 {[%emt 00:00:07] [%clk
00:00:25]} 57. Nd3 {[%emt 00:00:02] [%clk 00:00:19]} f2 {[%emt 00:00:18]} 0-1

[Site "Europe Echecs"]

[Event "Championnat d'Europe Rapide"]
[Date "2024.12.07"]
[White "Cvitan, Ognjen"]
[Black "George, Matthew P"]
[WhiteElo "2413"]
[BlackElo "1999"]
[Round "1.37"]
[Result "1-0"]
[TimeControl "900+10"]

1. d4 {[%emt 00:32:35] [%clk 00:15:10]} d5 {[%emt 00:05:02] [%clk 00:10:22]} 2.
c4 {[%emt 00:00:09] [%clk 00:15:19]} e6 {[%emt 00:00:02] [%clk 00:10:31]} 3. Nc3
{[%emt 00:00:08] [%clk 00:15:20]} c5 {[%emt 00:00:04] [%clk 00:10:38]} 4. cxd5
{[%emt 00:00:07] [%clk 00:15:23]} cxd4 {[%emt 00:00:03] [%clk 00:10:45]} 5. Qxd4
{[%emt 00:00:04] [%clk 00:15:29]} Nc6 {[%emt 00:00:03] [%clk 00:10:52]} 6. Qd1
{[%emt 00:00:04] [%clk 00:15:35]} exd5 {[%emt 00:00:06] [%clk 00:10:56]} 7. Qxd5
{[%emt 00:00:13] [%clk 00:15:31]} Qc7 {[%emt 00:00:14] [%clk 00:10:51]} 8. Nf3
{[%emt 00:00:28] [%clk 00:15:13]} Nf6 {[%emt 00:00:15] [%clk 00:10:46]} 9. Qd1
{[%emt 00:00:25] [%clk 00:14:58]} Bf5 {[%emt 00:01:11] [%clk 00:09:44]} 10. e3
{[%emt 00:00:38] [%clk 00:14:31]} Bb4 {[%emt 00:01:02] [%clk 00:08:52]} 11. Be2
{[%emt 00:00:46] [%clk 00:13:54]} Ne4 {[%emt 00:00:53] [%clk 00:08:10]} 12. Qb3
{[%emt 00:01:03] [%clk 00:13:01]} Qa5 {[%emt 00:00:33] [%clk 00:07:48]} 13. O-O
{[%emt 00:01:32] [%clk 00:11:39]} O-O {[%emt 00:02:42] [%clk 00:05:16]} 14. Bd2
{[%emt 00:01:24] [%clk 00:10:25]} Nxd2 {[%emt 00:00:11] [%clk 00:05:16]} 15.
Nxd2 {[%emt 00:00:02] [%clk 00:10:33]} Be6 {[%emt 00:00:33] [%clk 00:04:53]} 16.
Bc4 {[%emt 00:02:12] [%clk 00:08:31]} Rfe8 {[%emt 00:00:01] [%clk 00:05:02]} 17.
Rac1 {[%emt 00:00:23] [%clk 00:08:17]} Qh5 {[%emt 00:00:20] [%clk 00:04:51]} 18.
Qd1 {[%emt 00:00:51] [%clk 00:07:36]} Qg6 {[%emt 00:00:50] [%clk 00:04:12]} 19.
Bxe6 {[%emt 00:00:04] [%clk 00:07:42]} Rxe6 {[%emt 00:00:20] [%clk 00:04:02]}
20. Nf3 {[%emt 00:00:02] [%clk 00:07:50]} Rd8 {[%emt 00:00:17] [%clk 00:03:55]}
21. Qc2 {[%emt 00:00:07] [%clk 00:07:52]} Qh5 {[%emt 00:00:01] [%clk 00:04:03]}
22. Ne4 {[%emt 00:00:14] [%clk 00:07:49]} Rg6 {[%emt 00:00:58] [%clk 00:03:14]}
23. Ng3 {[%emt 00:00:03] [%clk 00:07:57]} Qg4 {[%emt 00:00:05] [%clk 00:03:18]}
24. Rfd1 {[%emt 00:00:11] [%clk 00:07:56]} Re8 {[%emt 00:00:19] [%clk 00:03:10]}
25. Qc4 {[%emt 00:00:31] [%clk 00:07:34]} Rc8 {[%emt 00:01:11] [%clk 00:02:10]}
26. Ne5 {[%emt 00:01:31] [%clk 00:06:13]} Qxc4 {[%emt 00:00:54] [%clk 00:01:26]}
27. Rxc4 {[%emt 00:00:02] [%clk 00:06:21]} Rd6 {[%emt 00:00:06] [%clk 00:01:30]}
28. Rxd6 {[%emt 00:00:05] [%clk 00:06:25]} Bxd6 {[%emt 00:00:01] [%clk
00:01:38]} 29. Nxc6 {[%emt 00:00:03] [%clk 00:06:33]} bxc6 {[%emt 00:00:20]
[%clk 00:01:28]} 30. Nf5 {[%emt 00:00:05] [%clk 00:06:37]} Bf8 {[%emt 00:00:05]
[%clk 00:01:33]} 31. Kf1 {[%emt 00:00:18] [%clk 00:06:30]} g6 {[%emt 00:00:02]
[%clk 00:01:42]} 32. Nd4 {[%emt 00:00:12] [%clk 00:06:27]} Bg7 {[%emt 00:00:14]
[%clk 00:01:37]} 33. Rxc6 {[%emt 00:00:26] [%clk 00:06:12]} Rb8 {[%emt 00:00:28]
[%clk 00:01:19]} 34. b3 {[%emt 00:00:04] [%clk 00:06:18]} a5 {[%clk 00:01:29]}
35. Ra6 {[%emt 00:00:09] [%clk 00:06:18]} f5 {[%emt 00:01:11] [%clk 00:00:29]}
36. g3 {[%emt 00:00:15] [%clk 00:06:13]} Rc8 {[%emt 00:00:22] [%clk 00:00:17]}
37. Rxa5 {[%emt 00:00:06] [%clk 00:06:17]} Rc1+ {[%emt 00:00:01] [%clk
00:00:27]} 38. Ke2 {[%emt 00:00:13] [%clk 00:06:14]} 1-0

[Site "Europe Echecs"]

[Event "Championnat d'Europe Rapide"]
[Date "2024.12.07"]
[White "Grodotzki, Kenneth"]
[Black "Zajic, Milan"]
[WhiteElo "2002"]
[BlackElo "2392"]
[Round "1.38"]
[Result "1-0"]
[TimeControl "900+10"]

1. f4 {[%emt 00:00:03] [%clk 00:15:16]} Nf6 {[%emt 00:00:01] [%clk 00:15:19]} 2.
Nf3 {[%emt 00:00:06] [%clk 00:15:22]} g6 {[%clk 00:15:27]} 3. g3 {[%emt
00:00:01] [%clk 00:15:31]} Bg7 {[%emt 00:00:02] [%clk 00:15:35]} 4. Bg2 {[%emt
00:00:01] [%clk 00:15:39]} O-O {[%emt 00:00:03] [%clk 00:15:43]} 5. O-O {[%emt
00:00:02] [%clk 00:15:46]} d6 {[%emt 00:00:24] [%clk 00:15:30]} 6. d3 {[%emt
00:00:18] [%clk 00:15:38]} e5 {[%emt 00:00:02] [%clk 00:15:38]} 7. e4 {[%emt
00:00:04] [%clk 00:15:43]} exf4 {[%emt 00:00:03] [%clk 00:15:46]} 8. gxf4 {[%emt
00:00:07] [%clk 00:15:45]} Bg4 {[%emt 00:00:16] [%clk 00:15:40]} 9. c3 {[%emt
00:00:50] [%clk 00:15:05]} c5 {[%emt 00:00:07] [%clk 00:15:43]} 10. Na3 {[%emt
00:00:30] [%clk 00:14:45]} Nc6 {[%emt 00:00:17] [%clk 00:15:37]} 11. Qe1 {[%emt
00:00:30] [%clk 00:14:25]} d5 {[%emt 00:01:14] [%clk 00:14:32]} 12. e5 {[%emt
00:00:15] [%clk 00:14:20]} Nh5 {[%emt 00:00:20] [%clk 00:14:22]} 13. Qf2 {[%emt
00:03:36] [%clk 00:10:54]} d4 {[%emt 00:02:42] [%clk 00:11:51]} 14. cxd4 {[%emt
00:00:50] [%clk 00:10:14]} cxd4 {[%emt 00:00:32] [%clk 00:11:29]} 15. Bd2 {[%emt
00:00:40] [%clk 00:09:43]} f6 {[%emt 00:00:12] [%clk 00:11:27]} 16. exf6 {[%emt
00:00:33] [%clk 00:09:20]} Bxf6 {[%emt 00:00:59] [%clk 00:10:38]} 17. b4 {[%emt
00:03:25] [%clk 00:06:05]} a6 {[%emt 00:00:40] [%clk 00:10:09]} 18. Rab1 {[%emt
00:00:52] [%clk 00:05:23]} Qd7 {[%emt 00:00:22] [%clk 00:09:57]} 19. Nc4 {[%emt
00:00:21] [%clk 00:05:12]} Rae8 {[%emt 00:00:02] [%clk 00:10:05]} 20. b5 {[%emt
00:00:16] [%clk 00:05:06]} axb5 {[%emt 00:00:03] [%clk 00:10:13]} 21. Rxb5
{[%emt 00:00:07] [%clk 00:05:09]} Ne7 {[%emt 00:01:40] [%clk 00:08:42]} 22. a4
{[%emt 00:00:48] [%clk 00:04:32]} Qc7 {[%emt 00:04:02] [%clk 00:04:50]} 23. Nfe5
{[%emt 00:01:38] [%clk 00:03:03]} Bc8 {[%emt 00:00:37] [%clk 00:04:23]} 24. Qxd4
{[%emt 00:00:38] [%clk 00:02:35]} Nc6 {[%emt 00:00:45] [%clk 00:03:47]} 25. Qc5
{[%emt 00:00:54] [%clk 00:01:51]} Qg7 {[%emt 00:00:29] [%clk 00:03:28]} 26. Bxc6
{[%emt 00:00:40] [%clk 00:01:21]} bxc6 {[%emt 00:00:12] [%clk 00:03:26]} 27.
Qxc6 {[%emt 00:00:07] [%clk 00:01:24]} g5 {[%emt 00:01:43] [%clk 00:01:54]} 28.
Qf3 {[%emt 00:00:52] [%clk 00:00:42]} Nxf4 {[%emt 00:00:31] [%clk 00:01:33]} 29.
Bxf4 {[%emt 00:00:19] [%clk 00:00:33]} gxf4+ {[%emt 00:00:02] [%clk 00:01:41]}
30. Qg2 {[%emt 00:00:10] [%clk 00:00:33]} Re7 {[%emt 00:00:48] [%clk 00:01:03]}
31. Rxf4 {[%emt 00:00:22] [%clk 00:00:21]} Bb7 {[%emt 00:00:46] [%clk 00:00:27]}
32. Qxg7+ {[%emt 00:00:05] [%clk 00:00:26]} Rxg7+ {[%emt 00:00:02] [%clk
00:00:36]} 33. Kf1 {[%emt 00:00:07] [%clk 00:00:29]} Bg2+ {[%emt 00:00:26] [%clk
00:00:19]} 34. Ke2 {[%emt 00:00:13] [%clk 00:00:26]} Kh8 {[%emt 00:00:17] [%clk
00:00:12]} 35. a5 {[%emt 00:00:13] [%clk 00:00:22]} Re7 {[%emt 00:00:01] [%clk
00:00:21]} 36. Kd1 {[%emt 00:00:11] [%clk 00:00:22]} h5 {[%emt 00:00:20] [%clk
00:00:12]} 37. Ng6+ {[%emt 00:00:08] [%clk 00:00:23]} Kg7 {[%emt 00:00:01] [%clk
00:00:21]} 38. Nxf8 {[%emt 00:00:09] [%clk 00:00:24]} Bc6 {[%emt 00:00:10] [%clk
00:00:21]} 39. Rb4 {[%emt 00:00:20] [%clk 00:00:14]} Bc3 {[%emt 00:00:02] [%clk
00:00:29]} 40. Nd6 {[%emt 00:00:12] [%clk 00:00:12]} Bxb4 {[%emt 00:00:28] [%clk
00:00:12]} 41. Nf5+ {[%emt 00:00:01] [%clk 00:00:21]} Kxf8 {[%emt 00:00:10]
[%clk 00:00:11]} 42. Nxe7+ {[%emt 00:00:01] [%clk 00:00:29]} Kxe7 {[%emt
00:00:02] [%clk 00:00:20]} 43. Rxb4 {[%emt 00:00:01] [%clk 00:00:38]} 1-0

[Site "Europe Echecs"]